bitfinex/quotes_ETHUSD_20250920
["timestamp","ask_amount","ask_price","bid_price","bid_amount"]
[1758350672963,7.04076516,4481.7,4481.6,4.3349914]
[1758350673319,10.04076516,4481.7,4481.6,4.3349914]
[1758350686458,10.04076516,4481.7,4481.6,6.2649914]
[1758350695791,10.04076516,4481.7,4481.6,5.8686]
[1758350696192,10.04067611,4481.7,4481.6,5.8686]
[1758350697193,10.04067611,4481.7,4481.6,5.623]
[1758350700412,10.26957611,4481.7,4481.6,5.623]
[1758350702893,10.47858356,4481.7,4481.6,5.623]
[1758350705215,10.24968356,4481.7,4481.6,5.623]
[1758350710914,10.24975779,4481.7,4481.6,5.623]
[1758350714883,10.24976236,4481.7,4481.6,5.623]
[1758350717297,10.24976236,4481.7,4481.6,5.858]
[1758350727737,10.24976236,4481.7,4481.6,5.623]
[1758350729443,10.24976236,4481.7,4481.6,5.858]
[1758350732045,7.24976236,4481.7,4481.6,8.89858523]
[1758350732250,7.04067611,4481.7,4481.6,8.89858523]
[1758350732626,6.91543781,4481.7,4481.6,8.89858523]
[1758350737520,0.002,4481.8,4481.7,2.23129615]
[1758350737720,0.002,4481.8,4481.7,3.60179725]
[1758350743062,0.002,4481.8,4481.7,3.57948429]
[1758350746933,0.002,4481.8,4481.7,3.60179725]
[1758350749882,0.002,4481.8,4481.7,4.39379725]
[1758350755084,0.002,4481.8,4481.7,4.37148429]
[1758350756367,0.002,4481.8,4481.7,4.39379725]
[1758350760294,0.002,4481.8,4481.7,4.37148429]
[1758350760494,0.002,4481.8,4481.7,4.13648429]
[1758350763188,0.2495,4481.8,4481.7,4.13648429]
[1758350763494,0.2495,4481.8,4481.7,1.11318814]
[1758350763687,0.2495,4481.8,4481.7,3.69]
[1758350763688,0.499,4481.8,4481.7,3.69]
[1758350763889,0.62434496,4481.8,4481.7,3.69]
[1758350764387,0.83331101,4481.8,4481.7,3.69]
[1758350765787,0.70792442,4481.8,4481.7,3.69]
[1758350765992,0.83327907,4481.8,4481.7,3.69]
[1758350766794,0.83327907,4481.8,4481.6,1.931]
[1758350766997,0.58577907,4481.8,4481.7,3.69]
[1758350767201,0.2475,4481.7,4481.6,1.931]
[1758350767490,0.2475,4481.7,4481.6,5.621]
[1758350767663,0.37285465,4481.7,4481.6,5.621]
[1758350767865,0.2475,4481.7,4481.6,5.621]
[1758350768278,0.37285465,4481.7,4481.6,5.621]
[1758350768596,0.2475,4481.7,4481.6,5.621]
[1758350770218,0.2475,4481.7,4481.6,1.931]
[1758350770402,0.2475,4481.7,4481.6,5.621]
[1758350772215,0.2475,4481.7,4481.6,1.931]
[1758350772374,0.2475,4481.7,4481.6,5.621]
[1758350774609,0.2475,4481.7,4481.6,1.931]
[1758350774779,0.2475,4481.7,4481.6,5.622]
[1758350774976,2.68759868,4481.7,4481.6,1.931]
[1758350775195,5.81295333,4481.7,4481.6,5.622]
[1758350776722,5.81295333,4481.7,4481.6,1.931]
[1758350776926,5.81295333,4481.7,4481.6,5.622]
[1758350778014,5.81273823,4481.7,4481.6,5.622]
[1758350780623,5.56523823,4481.7,4481.6,5.622]
[1758350780924,5.79403823,4481.7,4481.6,5.622]
[1758350787005,5.79403823,4481.7,4481.6,1.931]
[1758350787211,5.79403823,4481.7,4481.6,5.622]
[1758350789601,5.56523823,4481.7,4481.6,5.622]
[1758350793930,5.79403823,4481.7,4481.6,5.622]
[1758350795806,5.79403823,4481.7,4481.6,1.931]
[1758350796125,5.79403823,4481.7,4481.6,5.622]
[1758350797329,5.56523823,4481.7,4481.6,5.622]
[1758350798234,5.56571684,4481.7,4481.6,5.622]
[1758350801347,5.79451684,4481.7,4481.6,5.622]
[1758350802856,5.79451684,4481.7,4481.6,1.931]
[1758350803239,5.79451684,4481.7,4481.6,5.622]
[1758350810166,5.56571684,4481.7,4481.6,5.622]
[1758350810368,5.56571684,4481.7,4481.6,5.8669]
[1758350810761,5.56571684,4481.7,4481.6,2.1759]
[1758350811070,5.56571684,4481.7,4481.6,5.8669]
[1758350812642,5.56571684,4481.7,4481.6,5.622]
[1758350813163,5.56571684,4481.7,4481.6,1.931]
[1758350813361,5.56571684,4481.7,4481.6,5.622]
[1758350814556,5.56571684,4481.7,4481.6,1.931]
[1758350814746,5.56571684,4481.7,4481.6,5.622]
[1758350817214,5.56571684,4481.7,4481.6,3.692]
[1758350818130,5.56569362,4481.7,4481.6,3.692]
[1758350821015,5.56570339,4481.7,4481.6,3.692]
[1758350822224,5.56573797,4481.7,4481.6,3.692]
[1758350830496,5.56592897,4481.7,4481.6,3.692]
[1758350833131,5.81369741,4481.7,4481.6,3.692]
[1758350837055,5.56599741,4481.7,4481.6,3.692]
[1758350839931,5.56599741,4481.7,4481.6,3.9185]
[1758350841111,5.56602329,4481.7,4481.6,3.9185]
[1758350841735,3.33472714,4481.7,4481.6,3.9185]
[1758350842048,3.33472714,4481.7,4481.6,4.31065]
[1758350842567,3.12553885,4481.7,4481.6,4.31065]
[1758350844942,3.12553885,4481.7,4481.6,4.33296345]
[1758350846172,0.002,4481.8,4481.6,6.56430939]
[1758350846476,0.002,4481.8,4481.7,0.2265]
[1758350846641,0.002,4481.8,4481.7,0.88089959]
[1758350847039,0.002,4481.8,4481.7,3.11219574]
[1758350849545,0.002,4481.8,4481.7,3.1345087]
[1758350852683,0.002,4481.8,4481.7,3.11219574]
[1758350853184,0.002,4481.8,4481.7,0.88089959]
[1758350853360,0.002,4481.8,4481.7,3.11219574]
[1758350853545,0.002,4481.8,4481.7,0.88089959]
[1758350854065,0.002,4481.8,4481.7,0.65439959]
[1758350854258,0.002,4481.8,4481.7,3.11219574]
[1758350865035,0.002,4481.8,4481.7,3.1345087]
[1758350866919,0.002,4481.8,4481.7,3.11219574]
[1758350869100,0.002,4481.8,4481.7,2.88569574]
[1758350872530,0.002,4481.8,4481.7,3.11359574]
[1758350873526,0.002,4481.8,4481.7,3.1359087]
[1758350874230,0.002,4481.8,4481.7,3.11359574]
[1758350874427,0.002,4481.8,4481.7,2.88569574]
[1758350874620,0.002,4481.8,4481.7,3.1359087]
[1758350876214,0.002,4481.8,4481.7,2.88569574]
[1758350876618,0.002,4481.8,4481.7,3.11359574]
[1758350876819,0.002,4481.8,4481.7,3.1359087]
[1758350882857,0.002,4481.8,4481.7,2.9080087]
[1758350884125,0.002,4481.8,4481.7,3.1457087]
[1758350888479,0.002,4481.8,4481.7,3.9377087]
[1758350888767,0.002,4481.8,4481.7,3.67769574]
[1758350889062,0.002,4481.8,4481.7,3.91539574]
[1758350896190,0.002,4481.8,4481.7,5.84539574]
[1758350903685,0.2271,4481.8,4481.7,9.29769574]
[1758350908809,0.002,4481.8,4481.7,9.29769574]
[1758350922310,0.002,4481.8,4481.7,9.54009574]
[1758350927753,0.002,4481.8,4481.7,9.29769574]
[1758350928514,0.13358673,4481.8,4481.7,9.29769574]
[1758350928938,0.13358673,4481.8,4481.7,9.53379574]
[1758350929652,0.13358673,4481.8,4481.7,5.84379574]
[1758350929820,0.13358673,4481.8,4481.7,9.29769574]
[1758350932095,0.13358673,4481.8,4481.7,4.16129615]
[1758350932298,0.37018673,4481.8,4481.7,7.85129615]
[1758350938982,0.13358673,4481.8,4481.7,7.85129615]
[1758350960045,0.37078673,4481.8,4481.7,7.85129615]
[1758350961745,0.13358673,4481.8,4481.7,7.85129615]
[1758350962551,0.37078673,4481.8,4481.7,7.85129615]
[1758350963515,0.13358673,4481.8,4481.7,7.85129615]
[1758350974594,0.13358673,4481.8,4481.7,8.09349615]
[1758350981890,0.002,4481.8,4481.7,10.49204074]
[1758350983327,0.002,4481.8,4481.7,10.58146628]
[1758350994849,0.002,4481.8,4481.7,10.33926628]
[1758350999437,0.002,4481.8,4481.7,10.56956628]
[1758351002748,0.002,4481.8,4481.7,10.33926628]
[1758351002949,0.002,4481.8,4481.7,10.57096628]
[1758351006380,0.002,4481.8,4481.7,10.33926628]
[1758351010479,0.002,4481.8,4481.7,10.57096628]
[1758351011790,0.002,4481.8,4481.7,10.33926628]
[1758351016529,0.002,4481.8,4481.7,10.58616628]
[1758351016923,0.002,4481.8,4481.7,10.33926628]
[1758351026729,0.002,4481.8,4481.7,10.58616628]
[1758351027154,0.002,4481.8,4481.7,10.33926628]
[1758351027472,0.002,4481.8,4481.7,10.58616628]
[1758351045477,0.002,4481.8,4481.7,10.33926628]
[1758351046549,0.002,4481.8,4481.7,10.56926628]
[1758351046748,0.002,4481.8,4481.7,10.33926628]
[1758351054352,0.002,4481.8,4481.7,10.56926628]
[1758351056036,0.002,4481.8,4481.7,10.33926628]
[1758351067942,0.002,4481.8,4481.7,16.60906628]
[1758351071258,0.002,4481.8,4481.7,16.36926628]
[1758351079033,0.23,4481.8,4481.7,16.36926628]
[1758351081572,0.002,4481.8,4481.7,16.36926628]
[1758351090788,0.23,4481.8,4481.7,16.36926628]
[1758351091983,0.002,4481.8,4481.7,16.36926628]
[1758351094793,0.002,4481.8,4481.7,16.61606628]
[1758351097297,0.002,4481.8,4481.7,16.36926628]
[1758351100685,0.002,4481.8,4481.7,16.61606628]
[1758351101517,0.002,4481.8,4481.7,16.36926628]
[1758351101919,0.002,4481.8,4481.7,16.61606628]
[1758351109747,0.002,4481.8,4481.7,16.36926628]
[1758351116338,0.002,4481.8,4481.7,16.60516628]
[1758351117942,1e-08,4482.0,4481.9,3.02319659]
[1758351118155,1e-08,4482.0,4481.9,12.91353504]
[1758351118462,1e-08,4482.0,4481.9,13.12712308]
[1758351118615,1e-08,4482.0,4481.9,13.21653483]
[1758351124334,1e-08,4482.0,4481.9,8.72904297]
[1758351124647,0.23660001,4482.0,4481.9,5.04104297]
[1758351124825,0.23660001,4482.0,4481.9,6.80160834]
[1758351125862,0.23660001,4482.0,4481.9,3.11260834]
[1758351126071,0.23660001,4482.0,4481.9,2.32060834]
[1758351126275,0.23660001,4482.0,4481.9,6.00960834]
[1758351126436,0.23660001,4482.0,4481.9,6.80160834]
[1758351126837,0.23660001,4482.0,4481.9,2.23119659]
[1758351127255,0.23660001,4482.0,4481.9,6.71319659]
[1758351127575,0.23660001,4482.0,4481.9,5.92119659]
[1758351127745,0.47520002,4482.0,4481.9,6.71319659]
[1758351130133,0.47520002,4482.0,4481.9,2.23119659]
[1758351130371,0.47520002,4482.0,4481.9,5.92119659]
[1758351130573,0.47520002,4482.0,4481.7,10.19125271]
[1758351130759,0.23860002,4482.0,4481.8,3.69]
[1758351130936,0.23860002,4482.0,4481.7,6.03]
[1758351130937,4.48819186,4481.9,4481.7,6.03]
[1758351131141,4.25159186,4481.9,4481.8,5.619]
[1758351131675,4.48819186,4481.9,4481.8,5.619]
[1758351131838,4.61355094,4481.9,4481.8,1.929]
[1758351132044,7.61355094,4481.9,4481.8,5.619]
[1758351134346,7.48819186,4481.9,4481.8,5.619]
[1758351137182,7.48819186,4481.9,4481.8,1.929]
[1758351137384,7.48819186,4481.9,4481.8,5.62]
[1758351144622,3.0,4481.9,4481.8,5.62]
[1758351144770,3.0,4481.9,4481.8,8.09394637]
[1758351146238,3.0,4481.9,4481.8,7.85124637]
[1758351146387,3.0,4481.9,4481.8,8.09394637]
[1758351154289,0.67080855,4482.0,4481.8,8.09394637]
[1758351154495,0.67080855,4482.0,4481.9,2.49620855]
[1758351162422,0.67080855,4482.0,4481.9,2.47389659]
[1758351162861,1e-08,4482.0,4481.9,2.47389659]
[1758351163167,0.67073056,4482.0,4481.9,2.47389659]
[1758351163658,1e-08,4482.0,4481.9,2.47389659]
[1758351165163,1e-08,4482.0,4481.9,2.49620855]
[1758351165326,1e-08,4482.0,4481.9,2.47389659]
[1758351167658,1e-08,4482.0,4481.9,2.49620855]
[1758351171671,1e-08,4482.0,4481.9,2.25350855]
[1758351174158,1e-08,4482.0,4481.9,2.50310855]
[1758351175470,1e-08,4482.0,4481.9,2.25350855]
[1758351175667,1e-08,4482.0,4481.9,2.23119659]
[1758351177690,1e-08,4482.0,4481.9,2.25350855]
[1758351178556,1e-08,4482.0,4481.9,2.50310855]
[1758351182227,1e-08,4482.0,4481.9,4.90443208]
[1758351183500,1e-08,4482.0,4481.9,4.66183208]
[1758351183710,0.23220001,4482.0,4481.9,3.02319659]
[1758351183871,0.23220001,4482.0,4481.9,2.23119659]
[1758351184072,0.23220001,4482.0,4481.9,5.92219659]
[1758351188509,0.23220001,4482.0,4481.9,2.23119659]
[1758351188806,0.23220001,4482.0,4481.8,1.93]
[1758351188807,0.23220001,4482.0,4481.8,4.16123078]
[1758351188977,0.12532897,4482.0,4481.9,3.691]
[1758351189585,0.35752897,4482.0,4481.9,3.691]
[1758351190211,0.23220001,4482.0,4481.9,3.691]
[1758351190514,0.35752897,4482.0,4481.9,3.691]
[1758351190890,0.35752897,4482.0,4481.9,5.92219659]
[1758351191706,0.35752897,4482.0,4481.9,3.691]
[1758351191904,0.35752897,4482.0,4481.9,5.92219659]
[1758351193283,0.23220001,4482.0,4481.9,5.92219659]
[1758351195122,0.23220001,4482.0,4481.9,3.691]
[1758351197289,0.23220001,4482.0,4481.9,5.92219659]
[1758351203435,0.36992897,4482.0,4481.8,1.93]
[1758351203603,0.12557019,4482.0,4481.9,3.691]
[1758351203807,0.3577702,4482.0,4481.9,3.691]
[1758351204342,0.6023702,4482.0,4481.9,3.691]
[1758351204517,0.6023702,4482.0,4481.9,5.92219659]
[1758351204840,0.6023702,4482.0,4481.9,3.691]
[1758351206450,0.3577702,4482.0,4481.9,3.691]
[1758351207258,0.12557019,4482.0,4481.9,5.92219659]
[1758351207434,0.12557019,4482.0,4481.9,6.16889659]
[1758351210167,1e-08,4482.0,4481.9,6.16889659]
[1758351210367,1e-08,4482.0,4481.9,5.92219659]
[1758351210530,1e-08,4482.0,4481.9,6.16889659]
[1758351215345,0.12560015,4482.0,4481.9,6.16889659]
[1758351215669,1e-08,4482.0,4481.9,6.16889659]
[1758351217276,0.12560683,4482.0,4481.9,6.16889659]
[1758351218781,1e-08,4482.0,4481.9,6.16889659]
[1758351223145,1e-08,4482.0,4481.9,3.9377]
[1758351223344,1e-08,4482.0,4481.9,6.16889659]
[1758351223557,0.12957019,4482.0,4481.9,6.16889659]
[1758351223886,0.12957019,4482.0,4481.9,3.691]
[1758351224041,0.12957019,4482.0,4481.9,5.92219659]
[1758351224448,0.12957019,4482.0,4481.9,3.691]
[1758351225947,0.37307019,4482.0,4481.9,3.691]
[1758351226162,0.49867631,4482.0,4481.9,3.691]
[1758351230200,0.25517631,4482.0,4481.9,3.691]
[1758351238612,0.25519115,4482.0,4481.9,3.691]
[1758351244426,0.25519115,4482.0,4481.9,5.92219659]
[1758351244624,0.25519115,4482.0,4481.9,3.691]
[1758351247730,2.23119659,4481.9,4481.8,1.93]
[1758351247934,5.8150894,4481.9,4481.8,5.621]
[1758351248624,5.8150894,4481.9,4481.8,1.93]
[1758351248834,5.8150894,4481.9,4481.8,5.622]
[1758351249894,3.58389281,4481.9,4481.8,5.622]
[1758351254235,5.8150894,4481.9,4481.8,5.622]
[1758351256041,3.58389281,4481.9,4481.8,5.622]
[1758351256844,5.8150894,4481.9,4481.8,5.622]
[1758351261545,3.58389281,4481.9,4481.8,5.622]
[1758351262262,5.8150894,4481.9,4481.8,5.622]
[1758351265214,5.68946844,4481.9,4481.8,5.622]
[1758351265416,5.81465338,4481.9,4481.8,5.622]
[1758351269247,5.68923313,4481.9,4481.8,5.622]
[1758351269557,5.81468049,4481.9,4481.8,5.622]
[1758351270952,5.56568049,4481.9,4481.8,5.622]
[1758351290769,5.56628473,4481.9,4481.8,5.622]
[1758351292840,5.56628473,4481.9,4481.8,5.62]
[1758351293366,5.56627776,4481.9,4481.8,5.62]
[1758351293558,5.79267776,4481.9,4481.8,5.62]
[1758351294066,5.56627776,4481.9,4481.8,5.62]
[1758351295772,5.79267776,4481.9,4481.8,1.93]
[1758351295970,5.79267776,4481.9,4481.8,5.62]
[1758351296971,5.79267776,4481.9,4481.8,1.93]
[1758351297175,5.79267776,4481.9,4481.8,5.625]
[1758351300876,5.79267776,4481.9,4481.8,3.696]
[1758351320216,5.79258175,4481.9,4481.8,3.696]
[1758351325823,5.56618175,4481.9,4481.8,3.696]
[1758351327724,5.56618175,4481.9,4481.8,3.94]
[1758351329453,5.56618175,4481.9,4481.8,3.696]
[1758351332056,5.56615366,4481.9,4481.8,3.696]
[1758351337059,5.56615366,4481.9,4481.8,3.94]
[1758351340056,5.56615366,4481.9,4481.8,3.696]
[1758351343069,5.81245366,4481.9,4481.8,3.696]
[1758351343640,5.81245366,4481.9,4481.8,0.001]
[1758351354684,5.56615366,4481.9,4481.8,0.001]
[1758351356359,5.68669162,4481.9,4481.8,0.001]
[1758351356566,5.812131,4481.9,4481.8,0.001]
[1758351357291,5.566031,4481.9,4481.8,0.001]
[1758351362420,5.803831,4481.9,4481.8,0.001]
[1758351366974,5.67839162,4481.9,4481.8,0.001]
[1758351367199,5.80384843,4481.9,4481.8,0.001]
[1758351370603,5.67839162,4481.9,4481.8,0.001]
[1758351370805,5.80390617,4481.9,4481.8,0.001]
[1758351371916,5.56610617,4481.9,4481.8,0.001]
[1758351373796,5.56610617,4481.9,4481.8,0.2494]
[1758351375306,5.56610617,4481.9,4481.8,0.001]
[1758351375494,5.56610617,4481.9,4481.8,0.2494]
[1758351376817,5.5662373,4481.9,4481.8,0.2494]
[1758351383605,5.5662373,4481.9,4481.8,0.001]
[1758351383811,5.5662373,4481.9,4481.8,0.2494]
[1758351403458,5.5662373,4481.9,4481.8,0.001]
[1758351406858,5.56617631,4481.9,4481.8,0.001]
[1758351424045,5.79307631,4481.9,4481.8,0.001]
[1758351425692,5.7931101,4481.9,4481.8,0.001]
[1758351426182,5.5662101,4481.9,4481.8,0.001]
[1758351432395,5.35684777,4481.9,4481.8,0.001]
[1758351432806,5.23119659,4481.9,4481.8,0.001]
[1758351433009,5.35683992,4481.9,4481.8,0.001]
[1758351433512,5.23119659,4481.9,4481.8,0.001]
[1758351433882,5.56623619,4481.9,4481.8,0.001]
[1758351434911,5.56623499,4481.9,4481.8,0.001]
[1758351436011,5.56623587,4481.9,4481.8,0.001]
[1758351444041,5.5662417,4481.9,4481.8,0.001]
[1758351445038,5.8013417,4481.9,4481.8,0.001]
[1758351446452,5.5662417,4481.9,4481.8,0.001]
[1758351448911,5.8013417,4481.9,4481.8,0.001]
[1758351449850,5.5662417,4481.9,4481.8,0.2308]
[1758351453467,5.5662417,4481.9,4481.8,0.001]
[1758351453628,5.5662417,4481.9,4481.8,0.2308]
[1758351463896,5.5662417,4481.9,4481.8,0.001]
[1758351468399,5.8012417,4481.9,4481.8,0.001]
[1758351469100,5.5662417,4481.9,4481.8,0.001]
[1758351476996,5.8012417,4481.9,4481.8,0.001]
[1758351478626,5.5662417,4481.9,4481.8,0.001]
[1758351478929,5.8012417,4481.9,4481.8,0.001]
[1758351479629,5.5662417,4481.9,4481.8,0.001]
[1758351482624,5.7971417,4481.9,4481.8,0.001]
[1758351487038,5.79716039,4481.9,4481.8,0.001]
[1758351488841,10.05122281,4481.9,4481.8,0.001]
[1758351492251,16.96666062,4481.9,4481.8,0.001]
[1758351495151,16.96650924,4481.9,4481.8,0.001]
[1758351504355,16.96645416,4481.9,4481.8,0.001]
[1758351507142,16.96975416,4481.9,4481.8,0.001]
[1758351508025,27.26681658,4481.9,4481.8,0.001]
[1758351508334,23.01275416,4481.9,4481.8,0.001]
[1758351509227,3.0,4481.8,4481.6,0.001]
[1758351509428,9.25815349,4481.7,4481.6,0.001]
[1758351509927,9.49235349,4481.7,4481.6,0.001]
[1758351513169,16.4077913,4481.7,4481.6,0.001]
[1758351518847,16.4087913,4481.7,4481.6,0.001]
[1758351522172,16.40859619,4481.7,4481.6,0.001]
[1758351523999,21.67575588,4481.7,4481.6,0.001]
[1758351528698,2.23139573,4481.5,4481.4,1e-08]
[1758351528900,9.25905796,4481.5,4481.4,1e-08]
[1758351529200,9.49125796,4481.5,4481.4,1e-08]
[1758351529390,9.58074151,4481.5,4481.4,1e-08]
[1758351530898,16.3707455,4481.5,4481.4,1e-08]
[1758351531201,16.4963006,4481.5,4481.4,1e-08]
[1758351532305,16.4953006,4481.5,4481.4,1e-08]
[1758351538219,16.2631006,4481.5,4481.4,1e-08]
[1758351539319,16.2631006,4481.5,4481.4,0.23660001]
[1758351539510,12.5711006,4481.5,4481.4,0.23660001]
[1758351542592,12.4711006,4481.5,4481.4,0.23660001]
[1758351544214,12.4711006,4481.5,4481.4,1e-08]
[1758351545138,12.4711006,4481.5,4481.4,0.24120001]
[1758351549048,12.4711006,4481.5,4481.4,1e-08]
[1758351550414,12.4711006,4481.5,4481.4,0.24120001]
[1758351551154,12.4711006,4481.5,4481.4,1e-08]
[1758351551886,12.4711006,4481.5,4481.4,0.24120001]
[1758351552085,12.4711006,4481.5,4481.4,1e-08]
[1758351552290,12.4711006,4481.5,4481.4,0.24120001]
[1758351559589,12.4711006,4481.5,4481.4,1e-08]
[1758351564113,12.4711006,4481.5,4481.4,0.23430001]
[1758351565116,12.4711006,4481.5,4481.4,1e-08]
[1758351565612,12.4711006,4481.5,4481.4,0.23430001]
[1758351566682,12.4711006,4481.5,4481.4,1e-08]
[1758351569100,12.4731006,4481.5,4481.4,1e-08]
[1758351577563,12.3475455,4481.5,4481.4,1e-08]
[1758351577764,12.47324153,4481.5,4481.4,1e-08]
[1758351579268,12.47324153,4481.5,4481.4,0.23430001]
[1758351589619,12.47309448,4481.5,4481.4,0.23430001]
[1758351591189,12.47309109,4481.5,4481.4,0.23430001]
[1758351593723,12.47307134,4481.5,4481.4,0.23430001]
[1758351600426,12.47307134,4481.5,4481.4,1e-08]
[1758351600627,16.72797009,4481.5,4481.4,1e-08]
[1758351602826,16.72797009,4481.5,4481.4,0.23290001]
[1758351602827,12.47307134,4481.5,4481.4,0.23290001]
[1758351610231,12.47307134,4481.5,4481.4,1e-08]
[1758351610437,12.47307134,4481.5,4481.4,0.23290001]
[1758351612560,10.34167561,4481.5,4481.4,0.23290001]
[1758351612871,12.57307134,4481.5,4481.4,0.23290001]
[1758351614976,10.34167561,4481.5,4481.4,0.23290001]
[1758351617279,12.57307134,4481.5,4481.4,0.23290001]
[1758351617500,10.34167561,4481.5,4481.4,0.23290001]
[1758351620980,12.57307134,4481.5,4481.4,0.23290001]
[1758351621288,10.34167561,4481.5,4481.4,0.23290001]
[1758351626303,10.34167561,4481.5,4481.4,0.26435988]
[1758351626304,10.1324542,4481.5,4481.4,0.26435988]
[1758351626475,10.1324542,4481.5,4481.4,0.49095988]
[1758351629204,10.1324542,4481.5,4481.4,0.26435988]
[1758351629368,10.1324542,4481.5,4481.4,1e-08]
[1758351636913,10.1324542,4481.5,4481.4,0.22660001]
[1758351638315,10.1324542,4481.5,4481.4,1e-08]
[1758351641133,10.3649542,4481.5,4481.4,1e-08]
[1758351642928,10.1324542,4481.5,4481.4,1e-08]
[1758351643304,10.3649542,4481.5,4481.4,1e-08]
[1758351645544,12.36384993,4481.5,4481.4,1e-08]
[1758351645775,10.3778542,4481.5,4481.4,1e-08]
[1758351646375,10.58712127,4481.5,4481.4,1e-08]
[1758351646532,10.34172127,4481.5,4481.4,1e-08]
[1758351647170,10.34172127,4481.5,4481.4,0.23640001]
[1758351651970,10.1324542,4481.5,4481.4,0.23640001]
[1758351652152,10.34176943,4481.5,4481.4,0.23640001]
[1758351654196,10.1324542,4481.5,4481.4,0.23640001]
[1758351656063,10.34197348,4481.5,4481.4,0.23640001]
[1758351658700,10.34197348,4481.5,4481.4,1e-08]
[1758351659864,10.13255569,4481.5,4481.4,1e-08]
[1758351660399,10.34197497,4481.5,4481.4,1e-08]
[1758351660601,10.34197497,4481.5,4481.4,0.23600001]
[1758351664163,10.34197497,4481.5,4481.4,1e-08]
[1758351664422,10.34196162,4481.5,4481.4,0.23600001]
[1758351665292,10.34196162,4481.5,4481.4,3.92700001]
[1758351665469,10.34196162,4481.5,4481.4,4.44472047]
[1758351668315,10.13255569,4481.5,4481.4,4.44472047]
[1758351669785,10.13255569,4481.5,4481.4,4.20872047]
[1758351669985,10.36075569,4481.5,4481.4,4.20872047]
[1758351673315,0.44531788,4481.5,4481.4,4.20872047]
[1758351673525,0.21711788,4481.5,4481.4,4.20872047]
[1758351674630,0.21711832,4481.5,4481.4,4.20872047]
[1758351678525,0.21711832,4481.5,4481.4,0.51772047]
[1758351678734,0.21711832,4481.5,4481.4,3.69100001]
[1758351679149,0.21711832,4481.5,4481.4,1e-08]
[1758351679362,0.21711832,4481.5,4481.4,3.69100001]
[1758351687592,0.21711832,4481.5,4481.4,3.93590001]
[1758351687916,0.21711832,4481.5,4481.4,3.69100001]
[1758351688121,0.21711832,4481.5,4481.4,4.47655376]
[1758351695142,0.21622575,4481.5,4481.4,4.47655376]
[1758351696146,0.21622575,4481.5,4481.4,4.72145376]
[1758351696942,0.21622575,4481.5,4481.4,4.47655376]
[1758351698051,0.21622575,4481.5,4481.4,2.69100001]
[1758351704867,0.21622575,4481.5,4481.4,2.93550001]
[1758351705077,0.21622575,4481.5,4481.4,2.69100001]
[1758351714485,0.21624739,4481.5,4481.4,2.69100001]
[1758351720567,0.46014739,4481.5,4481.4,2.69100001]
[1758351720992,0.21624739,4481.5,4481.4,2.69100001]
[1758351723094,0.21624739,4481.5,4481.4,2.94040001]
[1758351727805,0.21624739,4481.5,4481.4,4.87040001]
[1758351736591,0.09059098,4481.5,4481.4,4.87040001]
[1758351736892,0.216248,4481.5,4481.4,4.87040001]
[1758351737918,0.21624815,4481.5,4481.4,4.87040001]
[1758351739205,0.21624815,4481.5,4481.4,4.62100001]
[1758351739604,0.21624815,4481.5,4481.4,4.86070001]
[1758351742724,0.21624815,4481.5,4481.4,7.35821078]
[1758351742892,0.21624815,4481.5,4481.4,8.15021078]
[1758351743101,0.09059098,4481.5,4481.4,8.15021078]
[1758351759832,0.09059098,4481.5,4481.4,7.91051078]
[1758351760360,0.09059098,4481.5,4481.4,8.15021078]
[1758351761652,0.09059098,4481.5,4481.4,7.91051078]
[1758351761852,0.33759098,4481.5,4481.4,7.91051078]
[1758351762177,0.33759098,4481.5,4481.4,8.90951077]
[1758351763487,0.09059098,4481.5,4481.4,8.90951077]
[1758351763661,0.33759098,4481.5,4481.4,6.67806524]
[1758351763846,0.33759098,4481.5,4481.4,8.90951077]
[1758351767994,0.09059098,4481.5,4481.4,8.90951077]
[1758351768205,0.002,4481.5,4481.4,9.14591077]
[1758351770899,0.002,4481.5,4481.4,8.90951077]
[1758351775786,0.002,4481.5,4481.4,9.14591077]
[1758351777181,0.002,4481.5,4481.4,8.90951077]
[1758351777814,0.002,4481.5,4481.4,9.14591077]
[1758351781487,0.002,4481.5,4481.4,8.91051077]
[1758351781683,0.2278,4481.5,4481.4,8.91051077]
[1758351784047,0.002,4481.5,4481.4,8.91051077]
[1758351785835,0.002,4481.5,4481.4,9.15271077]
[1758351788295,0.002,4481.5,4481.4,8.91051077]
[1758351791401,0.002,4481.5,4481.4,9.15271077]
[1758351792320,0.002,4481.5,4481.4,9.27832333]
[1758351798811,0.002,4481.5,4481.4,14.54203243]
[1758351802410,0.002,4481.5,4481.4,9.27832333]
[1758351804243,0.002,4481.5,4481.4,9.03612333]
[1758351804442,0.25,4481.5,4481.4,9.03612333]
[1758351806452,0.002,4481.5,4481.4,9.03612333]
[1758351820134,0.002,4481.5,4481.4,9.27372333]
[1758351823269,0.002,4481.5,4481.4,9.03612333]
[1758351825239,0.002,4481.5,4481.4,8.91051077]
[1758351841468,0.2292,4481.5,4481.4,1.93]
[1758351841667,4.48185375,4481.5,4481.4,5.62]
[1758351841959,7.0888674,4481.5,4481.4,5.62]
[1758351842162,3.04560624,4481.5,4481.4,5.62]
[1758351842458,2.71059573,4481.5,4481.4,5.62]
[1758351842655,0.4792,4481.5,4481.4,5.62]
[1758351845075,2.71059573,4481.5,4481.4,5.62]
[1758351845391,0.4792,4481.5,4481.4,5.62]
[1758351846694,2.71059573,4481.5,4481.4,5.62]
[1758351847289,0.4792,4481.5,4481.4,5.62]
[1758351847469,2.71059573,4481.5,4481.4,5.62]
[1758351848177,0.4792,4481.5,4481.4,5.62]
[1758351848770,2.71059573,4481.5,4481.4,5.62]
[1758351853290,2.71059573,4481.5,4481.4,1.93]
[1758351853495,5.71059573,4481.5,4481.4,5.623]
[1758351854713,5.71059573,4481.5,4481.4,5.622]
[1758351856717,3.4792,4481.5,4481.4,5.622]
[1758351856930,3.252,4481.5,4481.4,5.622]
[1758351859118,3.252,4481.5,4481.4,5.867]